Cogmind - Beta 10.2 @@@ ROGUE MODE // 2021.09.04 @ 06:28:52 Player: Roan Result: Destroyed by G-47 Trooper with Particle Gun Performance ------------- Evolutions (1) 500 Regions Visited (5) 1000 Robots Destroyed (16) 80 Value Destroyed (301) 301 Prototype IDs (0) 0 Alien Tech Used (0) 0 Bonus (0) 0 TOTAL SCORE: 1881 Bonus ------- None Cogmind --------- Core Integrity 0/400 Matter 212/300 Energy 59/100 System Corruption 0% Temperature Cool (9) Movement Core (100) Ox1 Location -8/Mines Parts ------- > --- POWER (2) -------- (None) > --- PROPULSION (2) --- (None) > --- UTILITY (2) ------ Small Storage Unit > --- WEAPON (3) ------- (None) > --- INVENTORY (6) ---- Small Storage Unit Light Armor Plating Peak State ------------ > --- POWER ------------ Light Ion Engine > --- PROPULSION ------- Aluminum Leg Aluminum Leg > --- UTILITY ---------- Heat Sink Small Storage Unit > --- WEAPON ----------- Assault Rifle Rocket Launcher > --- INVENTORY -------- Small Storage Unit Light Armor Plating Beam Rifle Mining Laser [Rating: 8] Favorites ----------- Power Light Ion Engine Engine Light Ion Engine Propulsion Aluminum Leg Leg Aluminum Leg Flight Unit Flight Unit Utility Small Storage Unit Device Heat Sink Storage Small Storage Unit Weapon EM Pulse Gun Energy Gun EM Pulse Gun Ballistic Gun Assault Rifle Launcher Rocket Launcher Special Weapon Mining Laser Build | -11 -10 -9 -9 -9 -8 ------- Run | Scr Mat Mat Min Exi Min Slots Evolved 2 | . . 2 . . . Power 1 | . . 1 . . . Propulsion . | . . . . . . Utility . | . . . . . . Weapon 1 | . . 1 . . . Parts Attached 17 | 5 3 . 2 . 7 Power 1 | 1 . . . . . Engine 1 | 1 . . . . . Core . | . . . . . . Reactor . | . . . . . . Propulsion 4 | 2 . . . . 2 Treads . | . . . . . . Leg 2 | 2 . . . . . Wheel . | . . . . . . Hover . | . . . . . . Flight 2 | . . . . . 2 Utility 4 | . 3 . 1 . . Device 1 | . . . 1 . . Storage 3 | . 3 . . . . Processor . | . . . . . . Hackware . | . . . . . . Protection . | . . . . . . Artifact . | . . . . . . Weapon 8 | 2 . . 1 . 5 Energy Gun 3 | 2 . . . . 1 Energy Cannon . | . . . . . . Ballistic Gun 2 | . . . 1 . 1 Ballistic Cannon . | . . . . . . Launcher 2 | . . . . . 2 Special Weapon 1 | . . . . . 1 Impact Weapon . | . . . . . . Slashing Weapon . | . . . . . . Piercing Weapon . | . . . . . . Special Melee Weapon . | . . . . . . Unidentified Prototypes . | . . . . . . Parts Lost 10 | . . 1 . . 9 Power 1 | . . . . . 1 Propulsion 2 | . . . . . 2 Utility 1 | . . . . . 1 Weapon 6 | . . 1 . . 5 Highest Loss Streak 8 | . . 1 . . 8 Average Slot Usage (%) 73 | . 88 68 77 77 55 Engine 10 | . 14 11 11 11 7 Leg 19 | . 28 22 22 22 6 Flight 2 | . . . . . 11 Device 7 | . . . 11 11 8 Storage 13 | . 17 22 11 11 11 Energy Gun 12 | . 28 13 11 11 2 Ballistic Gun 6 | . . . 11 11 5 Naked Turns . | . . . . . . Heaviest Build 22 | 6 22 14 12 12 14 Greatest Support 20 | 20 20 20 20 20 20 Greatest Overweight (x) 1 | . 1 . . . 1 Average Overweight (x) . | . . . . . . Largest Inventory Capacity 10 | 4 10 8 8 6 6 Average Capacity 6 | 4 6 8 6 6 6 Most Carried 6 | 3 4 5 5 5 6 Average Carried 3 | . 1 2 4 5 4 Final Capacity 8 | 4 8 8 6 6 6 Final Carried 5 | 1 1 5 5 5 2 Class Distribution -------------------- 100% | Mutant Dominant Class ---------------- Mutant | -10/Materials Mutant | -9/Materials Mutant | -9/Mines Mutant | -9/Exiles Mutant | -8/Mines Resources | -11 -10 -9 -9 -9 -8 ----------- Run | Scr Mat Mat Min Exi Min Matter Collected 315 | 250 . 25 . . 40 Remotely . | . . . . . . Salvage Created 458 | 60 . 90 . . 308 Parts 30 | 3 . 6 . . 21 Haulers Intercepted . | . . . . . . Recyclers Shooed . | . . . . . . Parts Field Recycled . | . . . . . . Retrieved Matter . | . . . . . . Parts Self-Destructed . | . . . . . . Prevented . | . . . . . . Kills | -11 -10 -9 -9 -9 -8 ------- Run | Scr Mat Mat Min Exi Min Combat Hostiles Destroyed 12 | 1 . 1 . . 10 Guns 6 | . . 1 . . 5 AOE 6 | 1 . . . . 5 Classes Destroyed 6 | 2 . 2 . . 2 Tunneler 1 | 1 . . . . . Recycler 2 | . . . . . 2 Watcher 1 | . . 1 . . . Swarmer 8 | . . . . . 8 Grunt 3 | 1 . . . . 2 Sentry 1 | . . 1 . . . Best Kill Streak 8 | 2 . 2 . . 8 Combat Bots Only 6 | 1 . 1 . . 6 Max Kills in Single Turn 3 | 2 . 1 . . 3 Gunslinging . | . . . . . . Exploded 3 | 1 . . . . 3 Melee . | . . . . . . Uniques/NPCs Destroyed . | . . . . . . Combat | -11 -10 -9 -9 -9 -8 -------- Run | Scr Mat Mat Min Exi Min Damage Taken 1115 | 71 . 207 . . 837 Core 418 | 10 . 74 . . 334 Absorbed by Shields . | . . . . . . Core Remaining (%) 96 | 96 96 . . . . Volleys Fired 51 | 5 2 15 . . 29 Largest 2 | 2 2 2 . . 1 Hottest 100 | 80 80 80 . . 100 Shots Fired 61 | 10 4 18 . . 29 Gun 56 | 10 4 18 . . 24 Cannon . | . . . . . . Launcher 4 | . . . . . 4 Special 1 | . . . . . 1 Kinetic 13 | . . . . . 13 Thermal 18 | 5 2 3 . . 8 Explosive 4 | . . . . . 4 Electromagnetic 26 | 5 2 15 . . 4 Robot Hit Streak 7 | 7 2 4 . . 5 Robot Miss Streak 4 | 2 . 2 . . 4 Penetration Max . | . . . . . . Secondary Targets . | . . . . . . Shots Hit Robots 35 | 7 2 10 . . 16 Core Hits 23 | 2 . 3 . . 18 Critical Hits . | . . . . . . Critical Kills . | . . . . . . Critical Parts Destroyed . | . . . . . . Melee Attacks . | . . . . . . Impact . | . . . . . . Slashing . | . . . . . . Piercing . | . . . . . . Sneak Attacks . | . . . . . . Combat Hostiles . | . . . . . . Follow-up Attacks . | . . . . . . Damage Inflicted 1093 | 181 26 189 . . 697 Guns 503 | 99 26 159 . . 219 Cannons . | . . . . . . Explosions 566 | 82 . 30 . . 454 Melee . | . . . . . . Ramming . | . . . . . . Kinetic 101 | . . . . . 101 Thermal 302 | 117 10 53 . . 122 Explosive 454 | . . . . . 454 Electromagnetic 236 | 64 16 136 . . 20 Impact . | . . . . . . Slashing . | . . . . . . Piercing . | . . . . . . Highest Corruption . | . . . . . . Average Corruption . | . . . . . . Corruption Purged . | . . . . . . Overload Shots . | . . . . . . Overflow Damage 6 | . . . . . 6 Projectiles . | . . . . . . Explosions 6 | . . . . . 6 Melee . | . . . . . . Knockbacks . | . . . . . . Impact . | . . . . . . Kinetic . | . . . . . . Secondary . | . . . . . . Self-Inflicted Damage 153 | 6 . . . . 147 Shots 5 | 1 . . . . 4 Rammed . | . . . . . . Targets Rammed . | . . . . . . Kicked . | . . . . . . Crushed . | . . . . . . Highest Temperature 138 | 138 36 54 . . 108 Average Temperature 51 | 71 20 39 . . 57 Received Heat Transfer 378 | 36 . 72 . . 270 Siege Activations . | . . . . . . Robots Corrupted . | . . . . . . Combat Hostiles . | . . . . . . Parts Fried 2 | . . 2 . . . Impact Corruptions . | . . . . . . Robots Melted . | . . . . . . Combat Hostiles . | . . . . . . Parts Melted 1 | 1 . . . . . Heat Transferred 509 | 75 25 100 . . 309 Parts Sabotaged . | . . . . . . Parts Stolen . | . . . . . . Parts Stripped . | . . . . . . Power Chain Reactions 2 | 1 . 1 . . . Missiles Intercepted . | . . . . . . Alert | -11 -10 -9 -9 -9 -8 ------- Run | Scr Mat Mat Min Exi Min Peak Influence 249 | 25 31 55 21 . 249 Initial 21 | . 16 13 21 . . Average 43 | 2 22 38 21 . 97 Maximum Alert Level 1 | . . . . . 1 Low Security (%) 97 | 100 100 100 100 . 91 Level 1 2 | . . . . . 8 Level 2 . | . . . . . . Level 3 . | . . . . . . Level 4 . | . . . . . . Level 5 . | . . . . . . High Security . | . . . . . . Max Security . | . . . . . . Squads Dispatched 2 | . 1 1 . . . Investigation . | . . . . . . Extermination . | . . . . . . Reinforcement 2 | . 1 1 . . . Assault . | . . . . . . Garrison . | . . . . . . Intercept . | . . . . . . Construction Impeded . | . . . . . . Haulers Reinforced . | . . . . . . Stealth | -11 -10 -9 -9 -9 -8 --------- Run | Scr Mat Mat Min Exi Min Distress Signals 1 | . . 1 . . . Communications Jammed . | . . . . . . Distress Signals . | . . . . . . Times Spotted 20 | 1 1 4 . . 14 Peak Tracking Total 5 | 1 1 3 . . 5 Tactical Retreats 2 | . . . . . 2 Traps | -11 -10 -9 -9 -9 -8 ------- Run | Scr Mat Mat Min Exi Min Traps Triggered . | . . . . . . Indirectly . | . . . . . . Trap Hack Attempts . | . . . . . . Triggered . | . . . . . . Disarmed . | . . . . . . Reprogrammed . | . . . . . . Reused . | . . . . . . Traps Extracted . | . . . . . . Installed . | . . . . . . Triggered 1 | . . 1 . . . Machines | -11 -10 -9 -9 -9 -8 ---------- Run | Scr Mat Mat Min Exi Min Machines Disabled 1 | . . . . . 1 Max in Single Turn 1 | . . . . . 1 Machines Sabotaged . | . . . . . . Garrisons Compromised . | . . . . . . Overloaded Fab Kills . | . . . . . . Fab Network Shutdowns . | . . . . . . Hacking | -11 -10 -9 -9 -9 -8 --------- Run | Scr Mat Mat Min Exi Min Machines Accessed . | . . . . . . Terminals . | . . . . . . Fabricators . | . . . . . . Repair Stations . | . . . . . . Recycling Units . | . . . . . . Scanalyzers . | . . . . . . Garrison Access . | . . . . . . Total Hacks . | . . . . . . Successful . | . . . . . . Failed . | . . . . . . Catastrophic . | . . . . . . Database Lockouts . | . . . . . . Manual . | . . . . . . Terminals . | . . . . . . Fabricators . | . . . . . . Repair Stations . | . . . . . . Recycling Units . | . . . . . . Scanalyzers . | . . . . . . Garrison Access . | . . . . . . Terminal Hacks . | . . . . . . Fabricator Hacks . | . . . . . . Repair Station Hacks . | . . . . . . Recycling Unit Hacks . | . . . . . . Scanalyzer . | . . . . . . Garrison Access Hacks . | . . . . . . Unauthorized Hacks . | . . . . . . Terminals . | . . . . . . Fabricators . | . . . . . . Repair Stations . | . . . . . . Recycling Units . | . . . . . . Scanalyzers . | . . . . . . Garrison Access . | . . . . . . Data Cores Recovered . | . . . . . . Used . | . . . . . . Hacking Detections . | . . . . . . Full Trace Events . | . . . . . . Feedback Events . | . . . . . . Feedback Blocked . | . . . . . . Robot Schematics Acquired . | . . . . . . Robots Built . | . . . . . . Matter . | . . . . . . Time . | . . . . . . Total Robot Build Rating . | . . . . . . Part Schematics Acquired . | . . . . . . Parts Built . | . . . . . . Matter . | . . . . . . Time . | . . . . . . Total Part Build Rating . | . . . . . . Parts Repaired . | . . . . . . Time . | . . . . . . Parts Recycled . | . . . . . . Recycled Matter . | . . . . . . Retrieved Matter . | . . . . . . Retrieved Components . | . . . . . . Parts Scanalyzed . | . . . . . . Part Schematics Acquired . | . . . . . . Parts Damaged . | . . . . . . Bothacking | -11 -10 -9 -9 -9 -8 ------------ Run | Scr Mat Mat Min Exi Min Used RIF Installer . | . . . . . . Robots Hacked . | . . . . . . Non-combat . | . . . . . . Combat . | . . . . . . Robot Hacks Applied . | . . . . . . Relay Couplers Released . | . . . . . . Robots Rewired . | . . . . . . Allies Hacked . | . . . . . . Hacks Repelled . | . . . . . . Allies | -11 -10 -9 -9 -9 -8 -------- Run | Scr Mat Mat Min Exi Min Total Allies . | . . . . . . Largest Group . | . . . . . . Highest-Rated Group . | . . . . . . Highest-Rated Ally . | . . . . . . Total Orders . | . . . . . . Ally Attacks . | . . . . . . Total Damage . | . . . . . . Kills . | . . . . . . Allies Corrupted . | . . . . . . Allies Melted . | . . . . . . Intel | -11 -10 -9 -9 -9 -8 ------- Run | Scr Mat Mat Min Exi Min Robot Analysis Total . | . . . . . . Derelict Logs Recovered . | . . . . . . Drone Launches . | . . . . . . Drone Recoveries . | . . . . . . Exploration | -11 -10 -9 -9 -9 -8 ------------- Run | Scr Mat Mat Min Exi Min Turns Passed 981 | 109 141 125 68 364 174 Spaces Moved 818 | 84 106 74 54 304 196 Core 37 | 32 . . . . 5 Treads . | . . . . . . Legs 616 | 52 106 74 54 304 26 Wheels . | . . . . . . Hover . | . . . . . . Flight 165 | . . . . . 165 Fastest Speed 37 | 50 120 120 120 120 37 Average Speed 101 | 93 121 120 120 120 52 Slowest Speed 150 | 120 150 120 120 120 120 Overloaded Moves . | . . . . . . Propulsion Burnouts . | . . . . . . Robots Hopped 5 | . . . . . 5 Cave-ins Triggered . | . . . . . . Exploration Rate (%) 28 | 5 21 11 15 77 39 Regions Visited 5 Branch Regions 3 Pre-discovered Areas . | . . . . . . Known Exits Taken . | . . . . . . Unknown Exits Taken 5 | 1 1 1 1 1 . Scrap Searched . | . . . . . . Spaces Dug . | . . . . . . Terrain Destroyed 34 | . . 6 . . 28 Melee . | . . . . . . Projectile . | . . . . . . AOE 34 | . . 6 . . 28 Terrain Rammed . | . . . . . . Walls Destroyed . | . . . . . . Machines Disabled . | . . . . . . Actions | -11 -10 -9 -9 -9 -8 --------- Run | Scr Mat Mat Min Exi Min Total 904 | 104 115 92 57 303 233 Wait 5 | 5 . . . . . Move 803 | 83 105 73 53 303 186 Hop 5 | . . . . . 5 Pick Up 16 | 6 3 4 1 . 2 Fast Attach . | . . . . . . Attach 17 | 5 3 . 2 . 7 Detach 4 | . 1 . 1 . 2 Swap . | . . . . . . Drop 3 | . 1 . . . 2 Fire 51 | 5 2 15 . . 29 Melee . | . . . . . . Ram . | . . . . . . Kick . | . . . . . . Crush . | . . . . . . Escape Stasis . | . . . . . . Rewire . | . . . . . . Trap . | . . . . . . Miscellaneous . | . . . . . . Route ------- -11/Scrapyard -10/Materials -9/Materials -9/Mines -9/Exiles -8/Mines History --------- Turn | Location | Event 2 | -11/Scrapyard | Met Revision 17 77 | -11/Scrapyard | Discovered new exit (range 8) 110 | -11/Scrapyard | Entered Materials 233 | -10/Materials | Discovered new exit (range 15) 251 | -10/Materials | Entered another Materials area 251 | -9/Materials | Evolved 2 slots: Power x1, Weapon x1 307 | -9/Materials | Build established: Mutant 353 | -9/Materials | Discovered new exit (range 12) 376 | -9/Materials | Entered Mines 383 | -9/Mines | Received a Rocket Launcher from a helpful Derelict 439 | -9/Mines | Deemed a non-threat by the Exiles lab entrance 439 | -9/Mines | Discovered new exit (range 5) 444 | -9/Mines | Entered Exiles 477 | -9/Exiles | Met 8R-AWN 501 | -9/Exiles | Met EX-HEX 584 | -9/Exiles | Met EX-DEC 629 | -9/Exiles | Visited The Gauntlet 797 | -9/Exiles | Discovered new exit (range 10) 808 | -9/Exiles | Entered Mines 959 | -8/Mines | Core integrity fell below 50% 969 | -8/Mines | Core integrity fell below 20% 982 | -8/Mines | Destroyed by G-47 Trooper with Particle Gun Last Messages --------------- Assault Rifle destroyed. R-06 Scavenger collects Lgt. Assault Rifle. R-06 Scavenger collects Lgt. Ion Engine. G-50 Soldier destroyed. R-06 Scavenger collects Carbon-fiber Leg. R-06 Scavenger collects Lgt. Angular Momentum Engine. K-01 Serf collects debris. Beam Rifle destroyed. K-01 Serf collects debris. R-06 Scavenger destroyed. G-47 Trooper destroyed. S-10 Pest destroyed. K-01 Serf collects debris. [Achievement: Let's See Who's Tougher] R-06 Scavenger destroyed. The unstable cave ceiling collapses. Rocket Launcher destroyed. Destroyed Rocket Launcher. Mining Laser destroyed. Acquired 10 matter. Map ----- +----------------------------------------------------+ | ?????????????????????????????????????##### """ " | | ?????????????????????????????????????????# | | ?????????????????????????????????????????######### | | ?????????????????????????????????????????????????? | | ?????????????????????????????????????????????????? | | ?????????????????????????????????????????????????? | | ?????????????????????????????????????????????????? | | ?????????????????????????????????????############# | | ?????????????????????????????????????# | | ?????????????????????????????????????# ########### | | ?????????????????????????????????????# #?????????? | | ?????????????????????????????????????# #?????????? | | ?????????????????????????????????????# #?????????? | | ??????????????????????????????## ##### ####??????? | | ?????????????????????????????# $ #??####? | | ????????????????????????????# ####### #### ?? | | ????????????????????????????????????????# #?? | | ???????????? ???????????????????????????### ####?? | | ???????????? ???????????????????????????# #????? | | ?????????????# ###???????????????????????# ###??? | | ??????????????? ??????????????????????# #??? | | ????????????????? ????####?????????????### #??? | | ?????????????????## ##### ##??????????????# #??? | | ?????????????????# ! * ###????????????# #### | | ?????????????????# """% % #????????????# | | ?????????????????# """* @ = ##????????????#### # | | ?????????????????# """ g=* #???????????????# # | | ?????????????????# %[ #???????????????# # | | ?????????????????##### #### #??????###### # | | ?????????????????????# #??????# # | | ?????????????????????##### #######???????# ###### | | ???????????????????????## ##?############# #????? | | ??????????????????????## #?# #????? | | ?????????????????????## ### #############????? | | ?????????????????????# #????????????????? | | ?????????????? ######????????????????? | | ???????????? ####?????????????????????? | | ?????????????###### #?????????????????????????? | | ??????????????????## #??????????????????????????? | | ???????????????????###???????????????????????????? | | ?????????????????????????????????????????????????? | | ?????????????????????????????????????????????????? | | | | | | | | | | | | | | | | | +----------------------------------------------------+ Best States ------------- Heat Dissipation 38 Energy Generation 10 Energy Capacity 125 Matter Stores 300 Matter Capacity 300 Sight Range 16 Terrain Scan Density 10 Evasion (%) 62 Item Schematics ----------------- None Robot Schematics ------------------ None Fabricated ------------ Nothing Alien Tech Used ----------------- None Achievements -------------- Let's See Who's Tougher Tourist Challenges ------------ None Game ------ Seed MagneticTerrainReplicator Manual? 0 Play Time 00:21:02 Cumulative 0.7 hours Start 2021.09.04 @ 06:10:58 End 2021.09.04 @ 06:28:52 Sessions 1 Manual Loads 0 Difficulty Rogue Special Mode None Game No. 7 Rogue 7 Adventurer 0 Explorer 0 Win Type - Total 0 Types 0/0/0/0/0/0/0/0/0 Lore% 0 Gallery% 1 Achievement% 3 Wizard Run 0 Options --------- ASCII 0 Keyboard 0 Movement Mouse Keybinds 0 Fullscreen 1 Font 18/Smallcaps Map View 76x50 Tactical HUD 0 Map Filters NONE Filters NONE Steam 1 RUN: 9f0cba06-f163-4841-b2dd-c72a79314cd9